Cogmind - Beta 13 *** ADVENTURER MODE // 2024.07.01 @ 14:52:03 Player: AntiGoose Result: Self-destructed Performance ------------- Evolutions (1) 500 Regions Visited (3) 600 Robots Destroyed (28) 140 Value Destroyed (612) 612 Prototype IDs (3) 60 Alien Tech Used (0) 0 Bonus (0) 0 TOTAL SCORE: 1912 Bonus ------- None Cogmind --------- Core Integrity 325/400 Matter 294/300 Energy 100/100 System Corruption 0% Temperature Warm (106) Movement Rolling (105) Ox1 Location -9/Materials Parts ------- > --- POWER (1) -------- (None) > --- PROPULSION (2) --- Armored Wheel Armored Wheel > --- UTILITY (3) ------ High-capacity Storage Unit Structural Scanner ECM Suite > --- WEAPON (3) ------- Particle Gun Light Assault Rifle > --- INVENTORY (20) --- Improved Heat Sink Compact Matter Pod (150) Sensor Array Seismic Detector Shield Generator Mining Laser Peak State ------------ > --- POWER ------------ Light Nuclear Core > --- PROPULSION ------- Aluminum Leg Aluminum Leg > --- UTILITY ---------- Large Storage Unit Experimental Sensor Array > --- WEAPON ----------- Light Assault Rifle Light Assault Rifle > --- INVENTORY -------- Light Treads Heat Sink Large Storage Unit Structural Scanner Sensor Array Seismic Detector ECM Suite Particle Gun Mining Laser [Rating: 18] Favorites ----------- Power Light Nuclear Core Engine Light Ion Engine Power Core Light Nuclear Core Propulsion Aluminum Leg Leg Aluminum Leg Wheel Armored Wheel Utility Large Storage Unit Device Structural Scanner Storage Large Storage Unit Weapon Light Assault Rifle Energy Gun Particle Gun Ballistic Gun Light Assault Rifle Launcher Grenade Launcher Special Weapon Mining Laser Build | -11 -10 -10 -9 ------- Run | Yrd Mat Min Mat Slots Evolved 2 | . . . 2 Power . | . . . . Propulsion . | . . . . Utility 1 | . . . 1 Weapon 1 | . . . 1 Parts Attached 31 | 7 8 13 3 Power 3 | 1 . 2 . Engine 2 | 1 . 1 . Core 1 | . . 1 . Reactor . | . . . . Propulsion 9 | 2 1 4 2 Treads . | . . . . Leg 7 | 2 1 4 . Wheel 2 | . . . 2 Hover . | . . . . Flight . | . . . . Utility 8 | 1 2 4 1 Device 6 | 1 1 3 1 Storage 2 | . 1 1 . Processor . | . . . . Hackware . | . . . . Protection . | . . . . Artifact . | . . . . Weapon 11 | 3 5 3 . Energy Gun 3 | 1 . 2 . Energy Cannon . | . . . . Ballistic Gun 3 | 2 1 . . Ballistic Cannon . | . . . . Launcher 3 | . 3 . . Special Weapon 2 | . 1 1 . Impact Weapon . | . . . . Slashing Weapon . | . . . . Piercing Weapon . | . . . . Special Melee Weapon . | . . . . Unidentified Prototypes 1 | . . 1 . Parts Lost 3 | . . 2 1 Power 2 | . . 1 1 Propulsion 1 | . . 1 . Utility . | . . . . Weapon . | . . . . Highest Loss Streak 1 | . . 1 1 To Critical Strikes . | . . . . Average Slot Usage (%) 97 | . 98 99 84 Engine 5 | . 14 3 . Core 7 | . . 9 7 Leg 25 | . 27 27 9 Wheel 1 | . . . 12 Device 15 | . 14 14 22 Storage 13 | . 13 14 11 Energy Gun 5 | . . 6 11 Ballistic Gun 18 | . 16 21 11 Launcher 2 | . 10 . . Naked Turns . | . . . . Heaviest Build 52 | 7 28 50 52 Greatest Support 24 | 20 20 20 24 Greatest Overweight (x) 2 | . 2 2 2 Average Overweight (x) 1 | . . 1 1 Largest Inventory Capacity 20 | 5 15 20 20 Average Capacity 16 | 5 14 17 20 Most Carried 10 | 2 7 10 9 Average Carried 6 | . 4 7 6 Final Capacity 20 | 5 15 20 20 Final Carried 7 | . 6 7 6 Class Distribution -------------------- 59% | Mutant 33% | Scavenger-Mutant 7% | Infiltrator-Mutant Dominant Class ---------------- Mutant | -10/Materials Mutant | -10/Mines Infiltrator-Mutant | -9/Materials Resources | -11 -10 -10 -9 ----------- Run | Yrd Mat Min Mat Matter Collected 721 | 285 49 317 70 Remotely . | . . . . Salvage Created 594 | 41 139 267 147 Parts 48 | 1 13 25 9 Haulers Intercepted . | . . . . Recyclers Shooed 1 | . . 1 . Parts Field Recycled . | . . . . Retrieved Matter . | . . . . Parts Self-Destructed . | . . . . Prevented . | . . . . Kills | -11 -10 -10 -9 ------- Run | Yrd Mat Min Mat Combat Hostiles Destroyed 25 | 1 7 11 6 Guns 20 | 1 2 11 6 AOE 5 | . 5 . . Classes Destroyed 5 | 1 4 . . Worker 1 | . 1 . . Builder 1 | . 1 . . Watcher 1 | . 1 . . Swarmer 13 | . 3 7 3 Grunt 12 | 1 4 4 3 Best Kill Streak 7 | 1 7 5 3 Combat Bots Only 5 | 1 4 5 3 Max Kills in Single Turn 2 | 1 2 1 1 Gunslinging . | . . . . Exploded 2 | . 2 . . Melee . | . . . . Uniques/NPCs Destroyed . | . . . . Combat | -11 -10 -10 -9 -------- Run | Yrd Mat Min Mat Hostile Shots Fired 156 | 8 22 68 58 Missed 44 | 2 7 22 13 Damage Taken 925 | 50 149 362 364 Core 199 | 8 36 80 75 Absorbed by Shields . | . . . . Ignored by Resistances 289 | 16 46 113 114 Core Remaining (%) 73 | 96 . 50 . Volleys Fired 74 | 5 14 32 23 Largest 2 | 2 2 2 2 Hottest 100 | 60 100 100 85 Shots Fired 144 | 10 23 65 46 Gun 129 | 10 11 62 46 Cannon . | . . . . Launcher 9 | . 9 . . Special 6 | . 3 3 . Kinetic 91 | 5 11 52 23 Thermal 44 | 5 3 13 23 Explosive 9 | . 9 . . Electromagnetic . | . . . . Robot Hit Streak 27 | 9 22 9 27 Robot Miss Streak 3 | . 1 2 3 Penetration Max . | . . . . Secondary Targets 2 | . . 1 1 Max Gunslinging Chain 1 | . . 1 1 Shots Hit Robots 108 | 9 16 45 38 Core Hits 50 | 2 17 20 11 Critical Kills . | . . . . Critical Parts Destroyed . | . . . . Critical Strikes 3 | . . 1 2 Burn 3 | . . 1 2 Melee Attacks . | . . . . Impact . | . . . . Slashing . | . . . . Piercing . | . . . . Sneak Attacks . | . . . . Combat Hostiles . | . . . . Follow-up Attacks . | . . . . Damage Inflicted 1564 | 98 587 424 455 Guns 1047 | 98 70 424 455 Cannons . | . . . . Explosions 517 | . 517 . . Melee . | . . . . Ramming . | . . . . Kinetic 595 | 45 70 325 155 Thermal 452 | 53 . 99 300 Explosive 517 | . 517 . . Electromagnetic . | . . . . Impact . | . . . . Slashing . | . . . . Piercing . | . . . . Highest Corruption 4 | . . 4 . Average Corruption 4 | . . 4 . Corruption Purged . | . . . . Corruption Blocked . | . . . . Effects 22 | . . 22 . Message Errors 5 | . . 5 . Matter Fused 6 | . . 6 . Heat Flow Errors 2 | . . 2 . Energy Discharges 3 | . . 3 . Data Loss (minor) 1 | . . 1 . Data Loss (major) 1 | . . 1 . Misfires 4 | . . 4 . Overload Shots . | . . . . Overflow Damage . | . . . . Projectiles . | . . . . Explosions . | . . . . Melee . | . . . . Knockbacks . | . . . . Impact . | . . . . Kinetic . | . . . . Secondary . | . . . . Self-Inflicted Damage 31 | . 31 . . Shots 1 | . 1 . . Rammed . | . . . . Targets Rammed . | . . . . Kicked . | . . . . Crushed . | . . . . Highest Temperature 288 | 50 40 288 189 Average Temperature 62 | 22 12 73 77 Received Heat Transfer 402 | 36 36 165 165 Siege Activations . | . . . . Robots Corrupted . | . . . . Combat Hostiles . | . . . . Parts Fried . | . . . . Impact Corruptions . | . . . . Robots Melted . | . . . . Combat Hostiles . | . . . . Parts Melted 2 | . . . 2 Heat Transferred 1309 | 125 . 296 888 Parts Sabotaged . | . . . . Parts Stolen . | . . . . Parts Stripped . | . . . . Power Chain Reactions . | . . . . Alert | -11 -10 -10 -9 ------- Run | Yrd Mat Min Mat Peak Influence 153 | 20 153 130 130 Initial 30 | . 11 30 . Average 54 | 4 89 41 62 Maximum Alert Level . | . . . . Low Security (%) 100 | 100 100 100 100 Level 1 . | . . . . Level 2 . | . . . . Level 3 . | . . . . Level 4 . | . . . . Level 5 . | . . . . High Security . | . . . . Max Security . | . . . . Squads Dispatched 1 | . . . 1 Investigation 1 | . . . 1 Extermination . | . . . . Reinforcement . | . . . . Assault . | . . . . Garrison . | . . . . Intercept . | . . . . Searches Triggered . | . . . . Construction Impeded . | . . . . Haulers Reinforced . | . . . . Active Scanning Responses . | . . . . Cargo Convoy Interrupts . | . . . . Stealth | -11 -10 -10 -9 --------- Run | Yrd Mat Min Mat Distress Signals 2 | . 1 1 . Communications Jammed . | . . . . Distress Signals . | . . . . Times Spotted 31 | 1 9 13 8 Peak Tracking Total 4 | 1 4 4 3 Tactical Retreats . | . . . . Traps | -11 -10 -10 -9 ------- Run | Yrd Mat Min Mat Traps Triggered 3 | . 2 . 1 Indirectly . | . . . . Trap Hack Attempts . | . . . . Triggered . | . . . . Disarmed . | . . . . Reprogrammed . | . . . . Reused . | . . . . Traps Extracted . | . . . . Installed . | . . . . Triggered . | . . . . Machines | -11 -10 -10 -9 ---------- Run | Yrd Mat Min Mat Machines Disabled . | . . . . Max in Single Turn . | . . . . Machines Repaired . | . . . . Machines Dismantled . | . . . . Machines Sabotaged . | . . . . Overloaded Fab Kills . | . . . . Hacking | -11 -10 -10 -9 --------- Run | Yrd Mat Min Mat Machines Accessed 6 | . 5 . 1 Terminals 4 | . 3 . 1 Fabricators . | . . . . Repair Stations 1 | . 1 . . Recycling Units 1 | . 1 . . Scanalyzers . | . . . . Garrison Access . | . . . . Total Hacks 27 | . 24 . 3 Successful 14 | . 13 . 1 Failed 13 | . 11 . 2 Catastrophic . | . . . . Database Lockouts . | . . . . Manual . | . . . . Terminals 15 | . 12 . 3 Fabricators . | . . . . Repair Stations 4 | . 4 . . Recycling Units 8 | . 8 . . Scanalyzers . | . . . . Garrison Access . | . . . . Terminal Hacks 4 | . 3 . 1 Record 2 | . 2 . . Prototype ID Bank 1 | . . . 1 Alert Level 1 | . 1 . . Fabricator Hacks . | . . . . Repair Station Hacks 2 | . 2 . . Scan Component 2 | . 2 . . Recycling Unit Hacks 8 | . 8 . . Recycle Component 2 | . 2 . . Process 1 | . 1 . . Report Inventory 3 | . 3 . . Retrieve Matter 2 | . 2 . . Scanalyzer . | . . . . Garrison Access Hacks . | . . . . Unauthorized Hacks . | . . . . Terminals . | . . . . Fabricators . | . . . . Repair Stations . | . . . . Recycling Units . | . . . . Scanalyzers . | . . . . Garrison Access . | . . . . Data Cores Recovered . | . . . . Used . | . . . . Hacking Detections 6 | . 5 . 1 Full Trace Events 1 | . 1 . . Feedback Events . | . . . . Feedback Blocked . | . . . . Robot Schematics Acquired . | . . . . Robots Built . | . . . . Authchips . | . . . . Time . | . . . . Total Robot Build Rating . | . . . . Part Schematics Acquired . | . . . . Parts Built . | . . . . Authchips . | . . . . Time . | . . . . Total Part Build Rating . | . . . . Parts Repaired . | . . . . Time . | . . . . Parts Recycled 2 | . 2 . . Recycled Matter 46 | . 46 . . Retrieved Matter 46 | . 46 . . Retrieved Components . | . . . . Parts Scanalyzed . | . . . . Part Schematics Acquired . | . . . . Parts Damaged . | . . . . Bothacking | -11 -10 -10 -9 ------------ Run | Yrd Mat Min Mat Used RIF Installer . | . . . . Robots Hacked . | . . . . Non-combat . | . . . . Combat . | . . . . Robot Hacks Applied . | . . . . Relay Couplers Released . | . . . . Fabnet Peak Effective % . | . . . . Robots Rewired . | . . . . Allies Hacked . | . . . . Hacks Repelled . | . . . . Allies | -11 -10 -10 -9 -------- Run | Yrd Mat Min Mat Total Allies . | . . . . Largest Group . | . . . . Highest-Rated Group . | . . . . Highest-Rated Ally . | . . . . Total Orders . | . . . . Ally Attacks . | . . . . Total Damage . | . . . . Kills . | . . . . Allies Corrupted . | . . . . Allies Melted . | . . . . Intel | -11 -10 -10 -9 ------- Run | Yrd Mat Min Mat Robot Analysis Total . | . . . . Derelict Logs Recovered 2 | . . 2 . Drone Launches . | . . . . Drone Recoveries . | . . . . Exploration | -11 -10 -10 -9 ------------- Run | Yrd Mat Min Mat Turns Passed 2537 | 104 606 1509 318 Spaces Moved 1142 | 73 288 621 160 Core 18 | 18 . . . Treads . | . . . . Legs 1008 | 55 288 621 44 Wheels 116 | . . . 116 Hover . | . . . . Flight . | . . . . Fastest Speed 50 | 50 120 190 105 Average Speed 196 | 102 187 222 153 Slowest Speed 260 | 120 260 260 260 Overloaded Moves . | . . . . Propulsion Burnouts . | . . . . Robots Hopped . | . . . . Cave-ins Triggered . | . . . . Exploration Rate (%) 41 | 6 45 94 19 Regions Visited 3 Branch Regions 1 Pre-discovered Areas 1 | . . 1 . Known Exits Taken . | . . . . Unknown Exits Taken 3 | 1 1 1 . Scrap Searched 2 | . . 2 . Spaces Dug 3 | . . 3 . Terrain Destroyed 42 | . 39 3 . Melee . | . . . . Projectile 3 | . . 3 . AOE 39 | . 39 . . Terrain Rammed . | . . . . Walls Destroyed . | . . . . Machines Disabled . | . . . . Actions | -11 -10 -10 -9 --------- Run | Yrd Mat Min Mat Total 1309 | 92 330 695 192 Wait 3 | . 3 . . Move 1139 | 72 287 620 160 Hop . | . . . . Pick Up 38 | 7 13 15 3 Fast Attach . | . . . . Attach 25 | 7 7 8 3 Detach 6 | . 3 3 . Swap 6 | . 1 5 . Drop 18 | 1 2 12 3 Fire 74 | 5 14 32 23 Melee . | . . . . Ram . | . . . . Kick . | . . . . Crush . | . . . . Escape Stasis . | . . . . Rewire . | . . . . Trap . | . . . . Miscellaneous . | . . . . Route ------- -11/Scrapyard -10/Materials (discovered 2 exits: *Mat / [*Min]) -10/Mines (discovered 2 exits: *Mat x2) -9/Materials History --------- Turn | Location | Event 2 | -11/Scrapyard | Met Revision 17 62 | -11/Scrapyard | Discovered new exit (range 8) 105 | -11/Scrapyard | Entered Materials 302 | -10/Materials | Build established: Mutant 458 | -10/Materials | Discovered new exit (range 9) 622 | -10/Materials | Discovered new exit (range 5) 711 | -10/Materials | Entered Mines 711 | -10/Mines | Discovered new exit (range 14) 717 | -10/Mines | Met a Derelict bent on vengeance 1057 | -10/Mines | Learned Materials garrison access intel 1280 | -10/Mines | Found a damaged Exp. Sensor Array with a note attached 1284 | -10/Mines | Found Prototype Device 1285 | -10/Mines | Identified Exp. Sensor Array 1347 | -10/Mines | Learned location of Zion (-7) 1769 | -10/Mines | Build established: Scavenger-Mutant 2183 | -10/Mines | Discovered new exit (range 13) 2220 | -10/Mines | Entered Materials 2220 | -9/Materials | Evolved 2 slots: Utility x1, Weapon x1 2538 | -9/Materials | Self-destructed Last Messages --------------- per-turn energy generation is a net positive, and consider deactivating power-draining parts if not. Acquired 26 matter. K-01 Serf collects debris. G-34 Mercenary suffers critical hit (Burn). G-34 Mercenary destroyed. K-01 Serf collects debris. R-06 Scavenger collects Sml. Laser. Acquired 1 matter. K-01 Serf collects debris. K-01 Serf cleans the Material Processor. K-01 Serf collects debris. R-06 Scavenger suffers critical hit (Burn). Acquired 1 matter. K-01 Serf collects debris. M-13 Machinist repairs R-06 Scavenger. K-01 Serf collects debris. Aluminum Leg melted. G-34 Mercenary destroyed. Map ----- +----------------------------------------------------+ | ?????????????????????????????????????????????????? | | ?????????????????????????????????????????????????? | | ?????????????????????????????????????????????????? | | ?????????????????????????????????????????????????? | | ?????????????????????????????????????????????????? | | ?????????????????????????????????????????????????? | | ?????????????????????????????????????????????????? | | ???????????????????????#?????????????????????????? | | ????????????????????"" ??????????????????????????? | | ???????????????????""" ??????????????????????????? | | ??????????????????? ???????????????????????????? | | ??????????????????? ????????????????????????????? | | ?????????????????? ????????????????????????????? | | ?????????????????? ??????????????????????????? | | ?????????+########+#####?????????????????????????? | | ?????????? ??????????????????????????? | | ???????????? #??????????????????????????? | | ?????????????? #### ####??????????????? | | ???????????#####+#### #############??????????????? | | ???????????# # ### # ????## ???????? | | ???????????# """ # ### """ # ????## ???????? | | ???????????# """"" # ### """"" # ????# ???????? | | ???????????# """"" # /Y """"" # ????? T | | ???????????# """"" r%% # """"" # ????# ####### | | ???????????# """ # # """ # ????## ## | | ???????????# # rmg@ # ## ## | | ??????????## # # "T" ######## ## | | ?????????### # # ####"""# ## | | ?????????############ #############"T"# ## | | ?????????## # !== # | | ?????????## # ! ^ + | | ?????????## # ! """ # | | ?????????## + ^""""" + | | ?????????## """ """ #^ """"" # | | ?????????## """ """ # """"" # | | ?????????## """ """ # """ ####### | | ?????????## # | | ?????????############ | | ?????????############ | | ???????????????????## ########+######## | | ???????????????????###########+###### #### | | ???????????????????###### # ???????????? | | ???????????????????????## # ???????????? | | ???????????????????????## # ???????????? | | ???????????????????????## # ???????????? | | ???????????????????????## """ """ # ???????????? | | ???????????????????????## """ """ # ???????????? | | ???????????????????????## """ """ # ???????????? | | ???????????????????????###############???????????? | | | +----------------------------------------------------+ Best States ------------- Heat Dissipation 35 Energy Generation 14 Energy Capacity 160 Matter Stores 300 Matter Capacity 300 Sight Range 16 Terrain Scan Density 10 ECM Strength 1 Resistance: KI 20 Resistance: TH 20 Resistance: EX 20 Resistance: EM 20 Resistance: I 20 Resistance: S 20 Resistance: P 20 Evasion (%) 55 Offensive Hacking 10 Item Schematics ----------------- None Robot Schematics ------------------ None Fabricated ------------ Nothing Alien Tech Used ----------------- None Achievements -------------- None Challenges ------------ None Game ------ Seed SegregatorImprovedPod Manual? 0 Play Time 00:23:09 Cumulative 1.2 hours Start 2024.07.01 @ 14:30:11 End 2024.07.01 @ 14:52:03 Sessions 1 Manual Loads 0 Difficulty Adventurer Special Mode None Game No. 2 Rogue 0 Adventurer 2 Explorer 0 Win Type - Total 0 Types 0/0/0/0/0/0/0/0/0 Lore% 4 Gallery% 3 Achievement% 4 Wizard Run 0 Options --------- Layout 1 ASCII 0 Keyboard 0 Movement Mouse Keybinds 0 Fullscreen 1 Font 32/SmallcapsGlow Map View 50x35 Zoom Use 0% Tactical HUD 0 Map Filters NONE Filters NONE Steam 1 RUN: ba80bf01-e873-40d9-9fef-02569f94819a